bitfinex-derivatives/quotes_BTCF0:USTF0_20240925
["timestamp","ask_amount","ask_price","bid_price","bid_amount"]
[1727227604448,3.006992,64436.0,64435.0,0.14394005]
[1727227604950,3.003992,64436.0,64435.0,0.14394005]
[1727227605249,3.006992,64436.0,64435.0,0.14494005]
[1727227605554,2.93452879,64436.0,64435.0,0.14494005]
[1727227605852,3.01212079,64436.0,64435.0,0.14494005]
[1727227606340,2.93447377,64436.0,64435.0,0.14494005]
[1727227607544,3.01206577,64436.0,64435.0,0.14494005]
[1727227608945,0.077605,64425.0,64424.0,0.0036]
[1727227609148,0.287605,64425.0,64424.0,0.36769278]
[1727227609345,1.353285,64425.0,64424.0,0.25992328]
[1727227609550,1.43089,64425.0,64424.0,0.25992328]
[1727227610145,1.22089,64425.0,64424.0,0.25992328]
[1727227610746,1.18206263,64425.0,64424.0,0.25992328]
[1727227610949,0.71638263,64425.0,64424.0,0.36768231]
[1727227611146,1.18506263,64425.0,64424.0,0.36768231]
[1727227611350,1.18506263,64425.0,64424.0,0.25992328]
[1727227611772,1.26266763,64425.0,64424.0,0.25992328]
[1727227611936,1.26266763,64425.0,64424.0,0.24908051]
[1727227612343,1.26266763,64425.0,64424.0,0.11827027]
[1727227612953,2.76266763,64425.0,64424.0,0.11827027]
[1727227613141,2.69008879,64425.0,64424.0,0.11827027]
[1727227614041,2.22440879,64425.0,64424.0,0.11827027]
[1727227615248,2.17005036,64425.0,64422.0,0.0446]
[1727227615453,0.155216,64423.0,64422.0,0.0446]
[1727227615850,0.755216,64423.0,64422.0,0.0446]
[1727227616442,1.042824,64423.0,64422.0,0.0446]
[1727227616944,0.442824,64423.0,64422.0,0.0446]
[1727227617149,0.232824,64423.0,64422.0,0.0446]
[1727227617351,0.832824,64423.0,64422.0,0.0446]
[1727227617651,0.835824,64423.0,64422.0,0.0446]
[1727227618652,0.235824,64423.0,64422.0,0.0446]
[1727227619659,0.232824,64423.0,64422.0,0.0476]
[1727227620457,0.233824,64423.0,64422.0,0.0446]
[1727227620957,1.043824,64423.0,64422.0,0.0446]
[1727227621551,0.155228,64418.0,64417.0,0.07689746]
[1727227621763,0.155228,64418.0,64412.0,0.0036]
[1727227621764,0.077615,64417.0,64412.0,0.07689746]
[1727227621961,1.06572,64418.0,64412.0,0.07689746]
[1727227621962,0.077618,64414.0,64412.0,0.07689746]
[1727227622148,0.21,64416.0,64409.0,0.07689746]
[1727227622452,0.21,64416.0,64402.0,0.4066]
[1727227622453,0.077627,64407.0,64402.0,0.4066]
[1727227622952,0.155254,64407.0,64402.0,0.4066]
[1727227623167,0.516054,64407.0,64402.0,0.4066]
[1727227623348,0.516054,64407.0,64404.0,0.07689746]
[1727227623654,1.116054,64407.0,64406.0,0.23996948]
[1727227624155,1.116054,64407.0,64406.0,0.0497]
[1727227624356,0.519054,64407.0,64406.0,0.0497]
[1727227624752,1.119054,64407.0,64406.0,0.0497]
[1727227624948,0.155264,64403.0,64402.0,0.4066]
[1727227625351,1.655264,64403.0,64402.0,0.4066]
[1727227626151,2.255264,64403.0,64402.0,0.4066]
[1727227626352,2.255264,64403.0,64402.0,0.45289581]
[1727227626742,2.255264,64403.0,64402.0,0.40709581]
[1727227626944,2.255264,64403.0,64401.0,0.0479]
[1727227626945,0.155266,64402.0,64401.0,0.0479]
[1727227627352,0.755266,64402.0,64401.0,0.0479]
[1727227627551,2.255266,64402.0,64401.0,0.0479]
[1727227628750,2.332899,64402.0,64401.0,0.09422641]
[1727227628956,2.332899,64402.0,64401.0,0.09422633]
[1727227629161,2.332899,64402.0,64401.0,0.0479]
[1727227629548,1.655266,64402.0,64401.0,0.0479]
[1727227629959,1.655266,64402.0,64401.0,0.12479746]
[1727227630157,1.660266,64402.0,64401.0,0.12479746]
[1727227630456,0.005,64402.0,64401.0,1.2215386]
[1727227630669,0.00771231,64419.0,64414.0,0.33243605]
[1727227630861,0.00771231,64419.0,64401.0,0.37159361]
[1727227630862,0.00411231,64419.0,64418.0,0.33243605]
[1727227631159,0.077608,64423.0,64418.0,0.33243605]
[1727227631362,0.077614,64418.0,64417.0,0.3608]
[1727227633159,0.6,64418.0,64410.0,0.3608]
[1727227633365,0.077622,64411.0,64410.0,0.3608]
[1727227633764,0.077622,64411.0,64403.0,0.3608]
[1727227633765,0.077629,64405.0,64403.0,0.3608]
[1727227634059,0.077631,64404.0,64403.0,0.3608]
[1727227634456,0.077631,64404.0,64403.0,0.69323605]
[1727227635055,0.077631,64404.0,64403.0,0.3608]
[1727227635654,0.077633,64402.0,64401.0,0.0479]
[1727227635851,0.21,64402.0,64401.0,0.0479]
[1727227636063,1.71,64402.0,64401.0,0.0479]
[1727227636665,0.21,64402.0,64401.0,0.0479]
[1727227637262,0.365266,64402.0,64401.0,0.0479]
[1727227639261,0.96943334,64402.0,64401.0,0.0479]
[1727227639665,0.077637,64399.0,64398.0,0.1082699]
[1727227639862,0.155274,64399.0,64398.0,0.1082699]
[1727227640664,1.193711,64399.0,64398.0,0.1082699]
[1727227640860,0.077644,64393.0,64392.0,0.07547198]
[1727227641063,0.077649,64389.0,64380.0,0.0036]
[1727227641295,0.077655,64384.0,64383.0,0.33243605]
[1727227641459,0.077655,64384.0,64383.0,0.58249088]
[1727227641661,0.077655,64384.0,64383.0,0.44651415]
[1727227641662,0.36531,64384.0,64383.0,0.44651415]
[1727227642570,0.36531,64384.0,64383.0,0.44951415]
[1727227643570,0.36531,64384.0,64383.0,0.1170781]
[1727227644475,0.36942956,64384.0,64383.0,0.1170781]
[1727227645672,0.36942956,64384.0,64383.0,0.003]
[1727227645865,0.36942956,64384.0,64383.0,0.11503406]
[1727227646071,0.36942956,64384.0,64383.0,0.003]
[1727227646272,0.52022956,64384.0,64383.0,0.003]
[1727227646471,0.0036,64402.0,64383.0,2.26665425]
[1727227646663,0.3608,64406.0,64397.0,0.33243605]
[1727227646970,0.077638,64398.0,64397.0,0.33243605]
[1727227647972,0.077641,64395.0,64394.0,0.3608]
[1727227648201,0.287641,64395.0,64394.0,0.3608]
[1727227648466,0.077655,64384.0,64383.0,0.003]
[1727227648673,0.287655,64384.0,64383.0,0.80818755]
[1727227648865,0.287655,64384.0,64383.0,0.44738755]
[1727227649067,0.287655,64384.0,64383.0,0.4473735]
[1727227649371,0.287655,64384.0,64383.0,0.33543605]
[1727227649967,0.287655,64384.0,64383.0,0.44432483]
[1727227650173,0.077655,64384.0,64383.0,0.33243605]
[1727227650368,0.077655,64384.0,64383.0,0.44428708]
[1727227650573,0.08173509,64384.0,64383.0,0.44428708]
[1727227651168,0.08173509,64384.0,64383.0,0.44425649]
[1727227651363,0.08173509,64384.0,64383.0,0.44428083]
[1727227651670,0.00408009,64384.0,64383.0,0.44428083]
[1727227651888,0.21,64395.0,64383.0,0.44828083]
[1727227652074,0.3608,64396.0,64393.0,0.04637751]
[1727227652075,0.077643,64394.0,64393.0,0.04637751]
[1727227652296,0.077644,64393.0,64392.0,0.04637899]
[1727227652472,0.077644,64393.0,64391.0,0.33243605]
[1727227652778,0.077645,64392.0,64391.0,0.33243605]
[1727227654167,0.36496221,64396.0,64391.0,0.33243605]
[1727227654382,0.0044,64408.0,64395.0,0.69323605]
[1727227654671,0.00408851,64408.0,64405.0,0.3608]
[1727227654874,0.077628,64406.0,64405.0,0.40716754]
[1727227655081,0.077628,64406.0,64405.0,0.04636754]
[1727227655294,0.077628,64406.0,64404.0,0.04636754]
[1727227655464,0.077628,64406.0,64405.0,0.04636754]
[1727227656076,0.077629,64405.0,64404.0,0.04636754]
[1727227656380,0.077629,64405.0,64403.0,0.40716754]
[1727227657177,0.077629,64405.0,64403.0,0.3608]
[1727227657988,0.00088,64408.0,64404.0,0.33243605]
[1727227658173,0.21405528,64413.0,64404.0,0.33243605]
[1727227658477,0.21405528,64413.0,64403.0,0.3608]
[1727227658478,0.077623,64410.0,64409.0,0.3608]
[1727227658805,0.00405528,64413.0,64409.0,0.3608]
[1727227658806,0.07762,64413.0,64409.0,0.3608]
[1727227659477,0.077621,64412.0,64409.0,0.3608]
[1727227660378,0.077623,64410.0,64409.0,0.3608]
[1727227661481,0.077623,64410.0,64409.0,0.3618]
[1727227662383,0.00088,64415.0,64409.0,0.69423605]
[1727227662574,0.07761,64422.0,64409.0,0.69423605]
[1727227662575,0.07761,64422.0,64414.0,0.33243605]
[1727227662777,0.21,64425.0,64418.0,0.33243605]
[1727227662778,0.077612,64420.0,64418.0,0.33243605]
[1727227662976,1.5,64419.0,64418.0,0.33243605]
[1727227663675,0.077612,64419.0,64418.0,0.33243605]
[1727227664986,1.5,64424.0,64418.0,0.33243605]
[1727227665911,0.21404047,64425.0,64419.0,0.33243605]
[1727227666186,0.077611,64420.0,64419.0,0.33243605]
[1727227666978,1.50404047,64425.0,64419.0,0.33243605]
[1727227667172,1.50404047,64425.0,64418.0,0.001]
[1727227667173,0.00404047,64425.0,64423.0,0.33243605]
[1727227667374,0.077595,64434.0,64423.0,0.33243605]
[1727227667779,0.21,64435.0,64423.0,0.33243605]
[1727227667991,0.077604,64426.0,64423.0,0.33243605]
[1727227668886,0.077604,64426.0,64424.0,0.33243605]
[1727227669281,0.077605,64425.0,64424.0,0.33243605]
[1727227669590,0.077608,64423.0,64422.0,0.3608]
[1727227670088,0.077608,64423.0,64422.0,0.69323605]
[1727227670277,0.077608,64423.0,64422.0,0.3608]
[1727227670484,0.21,64425.0,64415.0,0.3608]
[1727227670685,0.1234829,64429.0,64419.0,0.33243605]
[1727227670888,0.287611,64420.0,64415.0,0.3608]
[1727227671078,0.077614,64419.0,64415.0,0.3608]
[1727227671275,0.077614,64418.0,64415.0,0.3608]
[1727227671474,0.21,64420.0,64419.0,0.33243605]
[1727227672489,0.21400089,64420.0,64419.0,0.33243605]
[1727227672691,0.29161189,64420.0,64419.0,0.33243605]
[1727227675805,0.36922289,64420.0,64419.0,0.33243605]
[1727227677083,0.155232,64416.0,64410.0,0.04636754]
[1727227677389,0.21,64411.0,64408.0,0.3608]
[1727227677702,0.077625,64409.0,64408.0,0.69323605]
[1727227678079,0.077625,64409.0,64401.0,0.3608]
[1727227678281,0.077625,64409.0,64407.0,0.33243605]
[1727227678282,0.155252,64408.0,64407.0,0.33243605]
[1727227678488,0.287626,64408.0,64407.0,0.33243605]
[1727227678690,1.865252,64408.0,64407.0,0.33243605]
[1727227678891,1.787626,64408.0,64407.0,0.33243605]
[1727227679285,0.287626,64408.0,64407.0,0.33243605]
[1727227679788,0.077632,64403.0,64402.0,0.04636754]
[1727227679995,0.077632,64403.0,64402.0,0.37880359]
[1727227680193,0.217632,64403.0,64402.0,0.33243605]
[1727227681095,0.217632,64403.0,64402.0,0.37878313]
[1727227681292,0.217632,64403.0,64402.0,0.33243605]
[1727227681680,0.287632,64403.0,64402.0,0.33243605]
[1727227681898,0.287632,64403.0,64402.0,0.33743605]
[1727227682487,0.287632,64403.0,64402.0,0.38382937]
[1727227683289,0.08171439,64403.0,64402.0,0.33743605]
[1727227684605,0.00408239,64403.0,64402.0,0.33543605]
[1727227684983,0.077629,64406.0,64402.0,0.33543605]
[1727227685192,0.077629,64406.0,64405.0,0.33243605]
[1727227686407,0.00416727,64408.0,64405.0,0.33343605]
[1727227686603,0.077622,64411.0,64405.0,0.001]
[1727227686901,0.077622,64411.0,64410.0,0.33243605]
[1727227689503,0.08266217,64411.0,64410.0,0.33243605]
[1727227692312,0.077625,64409.0,64408.0,0.04641519]
[1727227692692,0.077625,64409.0,64408.0,0.37885124]
[1727227693702,0.15525,64409.0,64408.0,0.33243605]
[1727227695009,0.077625,64409.0,64408.0,0.33243605]
[1727227697207,0.15525,64409.0,64408.0,0.33243605]
[1727227697408,0.077625,64409.0,64408.0,0.33243605]
[1727227697602,0.15525,64409.0,64408.0,0.33243605]
[1727227698004,0.077625,64409.0,64408.0,0.33243605]
[1727227698712,0.077626,64408.0,64407.0,0.04641519]
[1727227698912,0.077633,64402.0,64401.0,0.3608]
[1727227699511,0.077633,64402.0,64401.0,0.69323605]
[1727227700012,0.077633,64402.0,64401.0,0.33243605]
[1727227700211,0.077633,64402.0,64401.0,0.69323605]
[1727227700511,0.287633,64402.0,64401.0,0.69323605]
[1727227701295,0.287633,64402.0,64401.0,0.69723605]
[1727227702220,0.287633,64402.0,64401.0,0.69623605]
[1727227703408,0.287633,64402.0,64388.0,0.0036]
[1727227703409,0.077649,64389.0,64388.0,0.0036]
[1727227703611,0.077649,64389.0,64385.0,0.3608]
[1727227703612,0.077652,64386.0,64385.0,0.3608]
[1727227704205,0.077652,64386.0,64385.0,0.33243605]
[1727227704603,0.217652,64386.0,64385.0,0.33243605]
[1727227705107,0.217652,64386.0,64385.0,0.34643605]
[1727227707407,0.217652,64386.0,64385.0,0.40840274]
[1727227707908,0.295304,64386.0,64385.0,0.34643605]
[1727227708108,0.295304,64386.0,64385.0,0.33243605]
[1727227708315,0.295304,64386.0,64385.0,0.34643605]
[1727227709005,0.295304,64386.0,64385.0,0.34043605]
[1727227709207,0.217652,64386.0,64385.0,0.38688278]
[1727227709508,0.217652,64386.0,64385.0,0.76320274]
[1727227709509,0.077652,64386.0,64385.0,0.76320274]
[1727227710303,0.077652,64386.0,64385.0,0.70123605]
[1727227710909,0.077652,64386.0,64385.0,0.34043605]
[1727227712016,0.00513986,64389.0,64385.0,0.34043605]
[1727227712313,0.14,64398.0,64385.0,0.34043605]
[1727227712314,0.14,64398.0,64388.0,0.69323605]
[1727227712615,0.14,64398.0,64397.0,0.33243605]
[1727227713317,0.14503719,64398.0,64397.0,0.33243605]
[1727227713611,0.14503719,64398.0,64397.0,0.3788566]
[1727227714204,0.14503719,64398.0,64397.0,0.33243605]
[1727227714619,0.22567519,64398.0,64397.0,0.33243605]
[1727227715517,0.22267519,64398.0,64397.0,0.38285584]
[1727227717118,0.22267519,64398.0,64397.0,0.38185584]
[1727227717311,0.22267519,64398.0,64397.0,0.33543605]
[1727227718427,0.22267519,64398.0,64397.0,0.33443605]
[1727227720018,0.22267519,64398.0,64397.0,0.38085584]
[1727227720205,0.22267519,64398.0,64397.0,0.33443605]
[1727227720510,0.22267519,64398.0,64397.0,0.38087231]
[1727227720716,0.22267519,64398.0,64397.0,0.33343605]
[1727227721411,0.30031319,64398.0,64397.0,0.33343605]
[1727227722009,0.30131319,64398.0,64397.0,0.33243605]
[1727227723021,0.07764,64396.0,64395.0,0.3608]
[1727227723215,0.21764,64396.0,64395.0,0.33243605]
[1727227723714,0.07764,64396.0,64395.0,0.33243605]
[1727227723920,0.29528,64396.0,64395.0,0.33243605]
[1727227724717,0.29628,64396.0,64395.0,0.33243605]
[1727227729123,0.155286,64394.0,64393.0,0.06189407]
[1727227729325,0.155298,64389.0,64388.0,0.362]
[1727227729626,0.295298,64389.0,64388.0,0.3408]
[1727227730212,0.217649,64389.0,64383.0,0.0770778]
[1727227730418,0.14,64384.0,64381.0,0.0770778]
[1727227730726,0.14,64382.0,64381.0,0.0770778]
[1727227730918,0.14,64382.0,64381.0,0.11125119]
[1727227732124,0.14,64382.0,64381.0,0.12425119]
[1727227733127,0.14,64382.0,64381.0,0.24123967]
[1727227733343,0.14,64382.0,64381.0,0.21695986]
[1727227733523,0.14,64382.0,64381.0,0.24123967]
[1727227733734,0.14,64382.0,64381.0,0.26551964]
[1727227733932,0.217657,64382.0,64381.0,0.24123967]
[1727227734227,0.217657,64382.0,64381.0,0.148531]
[1727227735031,0.217657,64382.0,64381.0,0.17281124]
[1727227735230,0.217657,64382.0,64381.0,0.148531]
[1727227736219,0.217657,64382.0,64381.0,0.12425119]
[1727227737526,0.217657,64382.0,64381.0,0.14853175]
[1727227739831,0.217657,64382.0,64381.0,0.12425119]
[1727227742931,0.217657,64382.0,64381.0,0.17281399]
[1727227743135,0.217657,64382.0,64381.0,0.19709539]
[1727227743840,0.217657,64382.0,64381.0,0.17281399]
[1727227744138,0.217657,64382.0,64381.0,0.0372814]
[1727227744340,0.217657,64382.0,64381.0,0.0615628]
[1727227746334,0.217657,64382.0,64381.0,0.0372814]
[1727227748845,0.217657,64382.0,64381.0,0.03728123]
[1727227749336,0.00493242,64388.0,64381.0,0.03728123]
[1727227749543,0.68588,64398.0,64386.0,0.3608]
[1727227749544,0.3242,64398.0,64386.0,0.3608]
[1727227749733,0.3242,64398.0,64392.0,0.04652618]
[1727227749933,0.077642,64395.0,64394.0,0.04652618]
[1727227750239,0.077642,64395.0,64393.0,0.04652618]
[1727227750541,0.077642,64395.0,64394.0,0.04652618]
[1727227750956,0.077643,64394.0,64393.0,0.04652618]
[1727227751238,0.077643,64394.0,64393.0,0.18842931]
[1727227751545,0.077643,64394.0,64393.0,0.18942889]
[1727227751845,0.077643,64394.0,64393.0,0.001]
[1727227752236,0.077645,64392.0,64391.0,0.07754754]
[1727227752545,0.217645,64392.0,64391.0,0.07754754]
[1727227753040,0.217645,64392.0,64386.0,0.3608]
[1727227753041,0.077646,64391.0,64390.0,0.07754754]
[1727227753339,0.217646,64391.0,64390.0,0.18850761]
[1727227753545,0.217646,64391.0,64390.0,0.11094748]
[1727227755048,0.217646,64391.0,64390.0,0.11097557]
[1727227755553,0.217646,64391.0,64390.0,0.11497557]
[1727227755746,0.2226339,64391.0,64390.0,0.11497557]
[1727227756843,0.2226339,64391.0,64390.0,0.47577557]
[1727227757361,0.18378846,64391.0,64390.0,0.47577557]
[1727227758153,0.18378846,64391.0,64390.0,0.44237194]
[1727227758550,0.18378846,64391.0,64390.0,0.3648]
[1727227759059,0.1449879,64391.0,64390.0,0.55317765]
[1727227759248,0.1449879,64391.0,64390.0,0.38907762]
[1727227759453,0.1449879,64391.0,64390.0,0.38907796]
[1727227759659,0.0049879,64391.0,64390.0,0.38907796]
[1727227759962,0.217641,64395.0,64390.0,0.38907796]
[1727227760186,0.217641,64395.0,64390.0,0.3648]
[1727227760659,0.217641,64395.0,64391.0,0.02427761]
[1727227760864,0.217641,64395.0,64390.0,0.3648]
[1727227761066,0.077643,64394.0,64391.0,0.02427755]
[1727227761254,0.077643,64394.0,64390.0,0.3648]
[1727227761454,0.077643,64394.0,64391.0,0.02427747]
[1727227761766,0.077643,64394.0,64390.0,0.3648]
[1727227761960,0.077643,64394.0,64391.0,0.02427745]
[1727227762158,0.077643,64394.0,64390.0,0.3608]
[1727227762465,0.077643,64394.0,64391.0,0.003]
[1727227763551,0.077643,64394.0,64392.0,0.02427644]
[1727227763749,0.077643,64394.0,64393.0,0.02427617]
[1727227763966,0.00515786,64395.0,64394.0,0.077643]
[1727227764157,0.14,64399.0,64394.0,0.10191923]
[1727227764464,0.14,64399.0,64396.0,0.3608]
[1727227765162,0.14,64399.0,64397.0,0.02427508]
[1727227765355,0.14,64399.0,64396.0,0.43956]
[1727227765549,0.14,64399.0,64397.0,0.02427465]
[1727227765762,0.14,64399.0,64396.0,0.4396]
[1727227765967,0.14,64399.0,64397.0,0.02427484]
[1727227766169,0.14,64399.0,64398.0,0.13452309]
[1727227766357,0.14,64399.0,64398.0,0.21202108]
[1727227766556,0.14,64399.0,64398.0,0.13452309]
[1727227766766,0.14,64399.0,64398.0,0.21202148]
[1727227767059,0.14,64399.0,64398.0,0.13452308]
[1727227767266,0.14,64399.0,64398.0,0.21200837]
[1727227767860,0.14,64399.0,64398.0,0.21200716]
[1727227768171,0.143,64399.0,64398.0,0.21200711]
[1727227768662,0.143,64399.0,64398.0,0.13445256]
[1727227768865,0.144,64399.0,64398.0,0.11017773]
[1727227769269,0.144,64399.0,64398.0,0.18764089]
[1727227769665,0.144,64399.0,64398.0,0.11017773]
[1727227769965,0.00504718,64405.0,64401.0,0.077633]
[1727227770162,0.077615,64417.0,64398.0,0.6687264]
[1727227770163,0.217619,64414.0,64404.0,0.43825677]
[1727227770364,0.217619,64414.0,64410.0,0.3608]
[1727227770575,0.14,64414.0,64410.0,0.3608]
[1727227770863,0.14,64414.0,64413.0,0.07762]
[1727227771064,0.14,64414.0,64411.0,0.07745677]
[1727227771369,0.14,64414.0,64410.0,0.43825677]
[1727227771566,0.14507566,64414.0,64410.0,0.43825677]
[1727227772261,0.14907566,64414.0,64411.0,0.001]
[1727227772966,0.14907566,64414.0,64410.0,0.3618]
[1727227774154,0.00907566,64414.0,64413.0,0.3608]
[1727227774569,0.00507566,64414.0,64413.0,0.43842]
[1727227774757,0.077608,64423.0,64413.0,0.43842]
[1727227774758,0.077608,64423.0,64415.0,0.077617]
[1727227774967,0.077608,64423.0,64422.0,0.3608]
[1727227775467,0.077608,64423.0,64413.0,0.001]
[1727227775468,0.37372253,64423.0,64413.0,0.001]
[1727227775669,0.3608,64414.0,64413.0,0.001]
[1727227775861,0.14,64416.0,64413.0,0.001]
[1727227776255,0.14,64416.0,64409.0,0.3608]
[1727227776666,0.1450382,64416.0,64409.0,0.3608]
[1727227777067,0.1450382,64416.0,64415.0,0.3608]
[1727227777270,0.3608,64423.0,64415.0,0.3608]
[1727227777478,0.0036,64430.0,64421.0,0.3608]
[1727227777479,0.077603,64427.0,64421.0,0.3608]
[1727227777976,0.14,64425.0,64421.0,0.3608]
[1727227778568,0.14,64425.0,64421.0,0.3618]
[1727227780671,0.217606,64425.0,64421.0,0.3618]
[1727227780871,0.14,64425.0,64421.0,0.3618]
[1727227781462,0.077609,64423.0,64421.0,0.3618]
[1727227781657,0.077609,64423.0,64421.0,0.001]
[1727227783473,0.077609,64422.0,64421.0,0.001]
[1727227787671,0.438409,64422.0,64421.0,0.001]
[1727227787905,0.438409,64422.0,64414.0,0.077618]
[1727227787906,0.36862226,64422.0,64414.0,0.04639398]
[1727227788064,0.077622,64411.0,64408.0,0.04872266]
[1727227788265,0.3608,64409.0,64408.0,0.00232868]
[1727227789964,0.3608,64409.0,64408.0,0.04872266]
[1727227790168,0.3608,64415.0,64408.0,0.51448266]
[1727227790169,0.438418,64415.0,64408.0,0.51448266]
[1727227790366,0.438418,64415.0,64412.0,0.04635545]
[1727227790573,0.438418,64415.0,64413.0,0.04635545]
[1727227790574,0.44344809,64415.0,64413.0,0.04635545]
[1727227790968,0.36583009,64415.0,64414.0,0.04635545]
[1727227791172,0.36583009,64415.0,64411.0,0.06179581]
[1727227791471,0.002,64415.0,64412.0,0.14]
[1727227791666,0.002,64415.0,64414.0,0.077618]
[1727227792065,0.002,64415.0,64414.0,1.143338]
[1727227792266,0.00505324,64419.0,64414.0,1.143338]
[1727227792466,0.002,64415.0,64414.0,0.15507477]
[1727227792681,0.002,64415.0,64414.0,0.78664245]
[1727227792863,0.002,64415.0,64414.0,0.65236245]
[1727227793289,0.002,64415.0,64414.0,1.25236245]
[1727227793579,0.002,64415.0,64414.0,1.32968013]
[1727227793770,0.002,64415.0,64414.0,1.32968103]
[1727227793967,0.077612,64420.0,64414.0,1.25236245]
[1727227794277,0.077612,64420.0,64416.0,0.07731836]
[1727227794466,0.077612,64420.0,64417.0,0.07731836]
[1727227795169,0.001,64420.0,64418.0,0.07731836]
[1727227795375,0.001,64420.0,64419.0,0.07731836]
[1727227795575,0.001,64420.0,64419.0,0.18639547]
[1727227796369,0.001,64420.0,64418.0,0.077371]
[1727227796571,0.001,64420.0,64418.0,0.154985]
[1727227797377,0.001,64420.0,64419.0,0.077371]
[1727227797772,0.44429895,64422.0,64419.0,0.077371]
[1727227797974,0.14,64420.0,64419.0,0.077371]
[1727227798181,0.217611,64420.0,64418.0,0.078371]
[1727227798479,0.217611,64420.0,64419.0,0.18654115]
[1727227798877,0.077612,64419.0,64418.0,0.077371]
[1727227799178,0.077612,64419.0,64418.0,0.18656208]
[1727227799483,0.077612,64419.0,64418.0,0.10919108]
[1727227800578,0.077612,64419.0,64418.0,0.18666123]
[1727227800778,0.077616,64416.0,64415.0,0.07747015]
[1727227801010,0.077617,64415.0,64414.0,0.07747015]
[1727227801187,0.2219,64415.0,64410.0,0.07747015]
[1727227801372,0.2219,64415.0,64412.0,0.06198522]
[1727227801572,0.21762,64413.0,64409.0,0.07747015]
[1727227801777,0.21762,64413.0,64406.0,0.09270867]
[1727227801778,0.21762,64413.0,64410.0,0.18719931]
[1727227801979,0.0008,64415.0,64412.0,0.07747015]
[1727227802188,0.077611,64421.0,64413.0,0.07747015]
[1727227802487,1.577611,64421.0,64418.0,0.06197499]
[1727227802693,1.577611,64421.0,64419.0,0.06197499]
[1727227802987,0.077611,64421.0,64419.0,0.06197499]
[1727227803203,0.3608,64422.0,64420.0,0.06197499]
[1727227803374,0.3608,64422.0,64419.0,0.077612]
[1727227803577,0.36574851,64422.0,64419.0,0.077612]
[1727227803987,0.32692106,64422.0,64420.0,0.18678994]
[1727227804179,0.32692106,64422.0,64420.0,0.07747015]
[1727227804385,0.32692106,64422.0,64413.0,0.0818]
[1727227804386,0.32692106,64422.0,64421.0,0.10900026]
[1727227804681,0.40453006,64422.0,64421.0,0.07746734]
[1727227804882,0.40453006,64422.0,64420.0,0.07746734]
[1727227805083,0.14,64421.0,64420.0,0.07746734]
[1727227805274,0.21761,64421.0,64420.0,0.18648934]
[1727227807386,0.21861,64421.0,64420.0,0.18648934]
[1727227807580,0.001,64421.0,64420.0,0.18648934]
[1727227807987,0.5784,64430.0,64420.0,1.675502]
[1727227807988,0.3608,64430.0,64420.0,1.675502]
[1727227808288,0.3608,64430.0,64428.0,0.06197397]
[1727227808483,0.44333024,64430.0,64429.0,0.06196633]
[1727227808687,0.0776,64429.0,64428.0,0.06196633]
[1727227808989,0.2176,64429.0,64428.0,0.06196633]
[1727227809488,0.2176,64429.0,64424.0,0.07746746]
[1727227809693,0.14,64429.0,64424.0,0.07746746]
[1727227809989,0.2176,64429.0,64428.0,0.06196852]
[1727227810287,0.2176,64429.0,64428.0,0.06196971]
[1727227810489,0.077604,64427.0,64424.0,0.07746746]
[1727227810790,0.077604,64427.0,64423.0,0.07746746]
[1727227811288,0.077604,64427.0,64420.0,0.3608]
[1727227811886,0.077604,64426.0,64420.0,0.3608]
[1727227812079,0.14,64429.0,64421.0,0.02426463]
[1727227812283,0.217601,64429.0,64422.0,0.02426465]
[1727227812485,0.14,64429.0,64420.0,0.439531]
[1727227812687,0.14,64429.0,64421.0,0.02426455]
[1727227812889,0.077602,64428.0,64422.0,0.10187355]
[1727227813190,0.077602,64428.0,64422.0,0.077609]
[1727227813383,0.36573124,64430.0,64420.0,0.3608]
[1727227813695,0.077598,64431.0,64420.0,0.3608]
[1727227813891,0.5008,64433.0,64420.0,0.3608]
[1727227813892,0.0776,64430.0,64425.0,0.077605]
[1727227814189,0.077604,64427.0,64421.0,0.16121]
[1727227814382,0.077604,64426.0,64421.0,0.16121]
[1727227814584,0.077604,64426.0,64421.0,0.07761]
[1727227816399,0.077604,64426.0,64420.0,0.3608]
[1727227817298,0.14,64423.0,64420.0,0.3608]
[1727227817795,0.3608,64430.0,64420.0,0.3608]
[1727227817796,0.077605,64426.0,64420.0,0.3608]
[1727227818293,0.077605,64425.0,64423.0,0.07746746]
[1727227818901,0.077605,64425.0,64424.0,0.07746746]
[1727227819397,0.077605,64425.0,64424.0,0.18619497]
[1727227819789,0.077605,64425.0,64424.0,0.10872751]
[1727227819985,0.077605,64425.0,64424.0,0.18616815]
[1727227820197,0.077608,64423.0,64419.0,0.09270867]
[1727227820500,0.217609,64422.0,64420.0,0.10885246]
[1727227820730,0.217609,64422.0,64421.0,0.10885246]
[1727227823503,0.217609,64422.0,64421.0,0.10881932]
[1727227824001,0.22251912,64422.0,64421.0,0.10881932]
[1727227824395,0.22251912,64422.0,64421.0,0.13308515]
[1727227825303,0.58331912,64422.0,64421.0,0.18628545]
[1727227825695,0.58331912,64422.0,64421.0,0.07746613]
[1727227826291,0.58331912,64422.0,64421.0,0.18643755]
[1727227827504,0.22251912,64422.0,64421.0,0.18643755]
[1727227827704,0.58331912,64422.0,64421.0,0.18643755]
[1727227828511,0.22251912,64422.0,64421.0,0.18643755]
[1727227828705,0.58331912,64422.0,64421.0,0.18643755]
[1727227831403,0.58331912,64422.0,64421.0,0.10897142]
[1727227832002,0.08251912,64422.0,64421.0,0.10897142]
[1727227832412,0.08251912,64422.0,64421.0,0.20168009]
[1727227833215,0.58331912,64422.0,64421.0,0.10897142]
[1727227833509,0.58331912,64422.0,64421.0,0.04651119]
[1727227834121,0.077611,64420.0,64417.0,0.04651119]
[1727227834408,0.077616,64416.0,64415.0,0.04651119]
[1727227834613,0.578416,64416.0,64415.0,0.04651119]
[1727227836109,0.578416,64416.0,64408.0,0.07984734]
[1727227836110,0.077618,64414.0,64411.0,0.0465003]
[1727227836409,0.077629,64405.0,64404.0,0.0465003]
[1727227836595,0.578429,64405.0,64404.0,0.0465003]
[1727227836801,0.077631,64404.0,64403.0,0.0465003]